bitfinex/quotes_SOLUSD_20250207
["timestamp","ask_amount","ask_price","bid_price","bid_amount"]
[1738928665631,0.063,198.2,198.19,106.40787375]
[1738928667732,0.063,198.2,198.19,94.6859]
[1738928667935,0.063,198.2,198.19,89.6403]
[1738928668547,0.063,198.2,198.19,94.6859]
[1738928668841,0.063,198.2,198.19,106.40787375]
[1738928672560,0.063,198.2,198.19,210.00787375]
[1738928673862,0.063,198.2,198.19,106.40787375]
[1738928674359,0.063,198.2,198.19,81.6]
[1738928677158,0.063,198.2,198.16,108.6463]
[1738928677325,0.063,198.2,198.15,16.76857375]
[1738928677529,11.78497375,198.2,198.14,19.36347375]
[1738928677727,11.72197375,198.19,198.14,7.6415]
[1738928678246,11.72197375,198.19,198.14,12.6883]
[1738928679247,11.72197375,198.19,198.14,5.0468]
[1738928679550,16.76767375,198.19,198.13,103.63]
[1738928679867,16.76767375,198.19,198.13,115.35197375]
[1738928680365,5.0457,198.19,198.13,115.35197375]
[1738928680570,5.0457,198.19,198.13,120.39907375]
[1738928680934,16.83037375,198.2,198.14,11.72197375]
[1738928681352,0.063,198.2,198.15,11.72197375]
[1738928682761,0.063,198.2,198.15,16.76857375]
[1738928686935,0.063,198.2,198.16,11.72197375]
[1738928687136,0.063,198.2,198.18,11.72197375]
[1738928690161,0.063,198.2,198.19,16.76757375]
[1738928693340,0.063,198.2,198.18,93.35197375]
[1738928694363,0.063,198.2,198.18,81.63]
[1738928694951,0.063,198.2,198.18,0.03]
[1738928696577,0.063,198.2,198.19,11.72197375]
[1738928698880,0.063,198.2,198.19,16.76757375]
[1738928702368,0.063,198.2,198.19,11.72197375]
[1738928702555,0.063,198.2,198.19,12.47866099]
[1738928704576,0.063,198.2,198.19,17.52426099]
[1738928705682,0.063,198.2,198.19,16.76757375]
[1738928706871,0.063,198.2,198.19,201.96757375]
[1738928711495,0.063,198.26,198.19,282.82381728]
[1738928711707,0.063,198.26,198.25,11.72197375]
[1738928711868,0.063,198.26,198.25,93.32197375]
[1738928712182,0.063,198.26,198.25,99.12247702]
[1738928712375,0.063,198.26,198.25,202.72247702]
[1738928712575,0.063,198.26,198.25,201.96607375]
[1738928715575,0.063,198.29,198.25,224.31352228]
[1738928715789,0.063,198.29,198.28,11.72197375]
[1738928717593,0.063,198.29,198.28,16.76527375]
[1738928718776,0.063,198.29,198.28,201.96527375]
[1738928722978,0.063,198.29,198.28,205.68527375]
[1738928723882,0.063,198.29,198.28,219.09712228]
[1738928725299,0.063,198.29,198.28,205.68527375]
[1738928727384,0.063,198.29,198.28,102.08527375]
[1738928728999,0.063,198.29,198.28,205.68527375]
[1738928729599,0.063,198.29,198.28,219.09712228]
[1738928738403,0.063,198.29,198.28,220.36818276]
[1738928740106,6.0957,198.43,198.37,11.72197375]
[1738928740292,0.063,198.4,198.39,11.72197375]
[1738928741812,0.063,198.4,198.39,16.76247375]
[1738928742113,0.063,198.4,198.39,5.0405]
[1738928742798,0.063,198.4,198.36,11.72197375]
[1738928743490,0.063,198.4,198.37,5.041]
[1738928744189,0.063,198.4,198.37,16.76297375]
[1738928745806,0.063,198.4,198.37,5.041]
[1738928746007,0.063,198.4,198.36,196.92197375]
[1738928746396,0.063,198.4,198.36,201.96307375]
[1738928747811,0.063,198.4,198.37,11.72197375]
[1738928748906,0.063,198.4,198.38,5.0408]
[1738928749103,0.063,198.4,198.39,11.72197375]
[1738928750623,0.063,198.4,198.38,16.76277375]
[1738928753002,0.063,198.4,198.39,11.72197375]
[1738928753626,0.063,198.4,198.39,16.19788294]
[1738928754603,0.063,198.4,198.39,21.23838294]
[1738928757424,0.063,198.4,198.39,206.43838294]
[1738928757622,0.063,198.4,198.39,205.68247375]
[1738928758109,0.063,198.4,198.39,219.09432228]
[1738928760118,0.063,198.44,198.4,13.41184853]
[1738928760320,0.063,198.44,198.43,11.72197375]
[1738928760526,0.063,198.44,198.43,196.92197375]
[1738928761639,0.063,198.44,198.43,185.2]
[1738928762409,0.063,198.44,198.43,190.2395]
[1738928763741,0.063,198.44,198.43,201.96147375]
[1738928764328,0.063,198.44,198.43,215.37332228]
[1738928764939,0.0001,198.44,198.43,216.37332228]
[1738928766422,0.0001,198.46,198.45,2.0]
[1738928766746,0.0001,198.46,198.45,213.0892336]
[1738928767029,0.0001,198.46,198.45,212.33382228]
[1738928767438,0.0001,198.48,198.47,26.13382228]
[1738928767643,0.0001,198.48,198.47,26.88916928]
[1738928767827,0.0001,198.48,198.47,25.88916928]
[1738928768132,0.0001,198.48,198.47,30.92766928]
[1738928768333,0.0001,198.48,198.47,31.92766928]
[1738928769032,0.0001,198.48,198.47,30.92766928]
[1738928769928,0.0001,198.48,198.47,32.16734362]
[1738928770329,0.0001,198.48,198.47,33.40638817]
[1738928770928,0.0001,198.48,198.47,30.92766928]
[1738928771706,0.0001,198.48,198.47,32.19681769]
[1738928771911,0.0001,198.48,198.47,30.92766928]
[1738928772336,0.0001,198.48,198.47,216.12766928]
[1738928772536,0.0001,198.48,198.47,215.37232228]
[1738928772733,0.0001,198.48,198.47,201.96047375]
[1738928773234,0.0001,198.48,198.47,205.68047375]
[1738928774515,0.0001,198.48,198.47,201.96047375]
[1738928775431,0.0001,198.48,198.47,190.2385]
[1738928775634,0.0001,198.48,198.47,201.96047375]
[1738928778833,0.0001,198.48,198.47,215.37232228]
[1738928779134,0.0001,198.48,198.47,216.37232228]
[1738928779336,0.0431,198.49,198.47,221.86208312]
[1738928779516,0.0431,198.49,198.48,0.75534774]
[1738928779836,0.0431,198.49,198.48,13.47732149]
[1738928780412,0.0199,198.5,198.49,18.44984853]
[1738928780617,0.0199,198.5,198.49,203.64984853]
[1738928782117,0.0199,198.5,198.49,215.37182228]
[1738928784220,0.063,198.6,198.54,20.0]
[1738928784426,0.063,198.6,198.59,11.72197375]
[1738928784626,0.063,198.6,198.59,15.44197375]
[1738928785219,0.063,198.6,198.59,119.04197375]
[1738928786318,0.063,198.6,198.59,124.07747375]
[1738928787341,0.03,198.68,198.6,13.41184853]
[1738928787545,0.03,198.68,198.63,11.72197375]
[1738928788421,0.03,198.68,198.63,16.75637375]
[1738928789040,0.03,198.68,198.63,228.70924151]
[1738928789239,0.03,198.68,198.67,11.72197375]
[1738928789440,0.03,198.68,198.67,116.07666929]
[1738928789641,0.03,198.68,198.67,210.33382228]
[1738928790340,1.6178,198.78,198.67,210.33382228]
[1738928790341,1.6178,198.78,198.69,1.0]
[1738928790540,24.68789293,198.84,198.77,11.72197375]
[1738928790743,18.22317495,198.83,198.76,18.22317495]
[1738928791125,7.93661918,198.84,198.79,18.22317495]
[1738928791638,18.22317495,198.81,198.74,18.22317495]
[1738928791946,18.22317495,198.79,198.72,121.82317495]
[1738928792144,18.22317495,198.77,198.71,18.22317495]
[1738928792345,20.0,198.81,198.7,107.32]
[1738928792346,18.22317495,198.75,198.7,103.6]
[1738928792537,18.22317495,198.74,198.69,81.6]
[1738928792841,18.22317495,198.74,198.68,107.32]
[1738928793550,18.22317495,198.73,198.68,107.32]
[1738928794348,23.25517495,198.73,198.68,107.32]
[1738928794552,18.22317495,198.7,198.64,18.22317495]
[1738928795339,18.22317495,198.68,198.62,18.22317495]
[1738928795534,18.22317495,198.67,198.62,3.72]
[1738928795939,18.22317495,198.66,198.62,3.72]
[1738928796340,18.22317495,198.67,198.62,3.72]
[1738928796843,18.22317495,198.66,198.62,3.72]
[1738928797156,18.22317495,198.64,198.58,18.22317495]
[1738928797459,18.22317495,198.64,198.57,18.22317495]
[1738928797627,18.22317495,198.63,198.56,181.66317495]
[1738928797952,18.22317495,198.59,198.53,18.22317495]
[1738928798150,18.22317495,198.59,198.52,21.94317495]
[1738928798337,23.25857495,198.6,198.54,18.22317495]
[1738928799252,14.62101075,198.65,198.55,18.22317495]
[1738928799253,18.22317495,198.61,198.55,18.22317495]
[1738928799425,18.22317495,198.6,198.54,18.22317495]
[1738928800037,23.25817495,198.61,198.54,18.22317495]
[1738928801454,23.25817495,198.61,198.54,23.25987495]
[1738928801754,18.22317495,198.6,198.54,18.22317495]
[1738928801932,18.22317495,198.6,198.53,26.98007495]
[1738928802132,18.22317495,198.6,198.53,130.58007495]
[1738928802634,23.25847495,198.6,198.53,130.58007495]
[1738928803042,18.22317495,198.59,198.53,18.22317495]
[1738928803639,18.22317495,198.55,198.48,207.14317495]
[1738928803845,18.22317495,198.55,198.48,125.54317495]
[1738928804142,18.22317495,198.53,198.47,18.22317495]
[1738928804656,5.0372,198.52,198.46,121.88617495]
[1738928804860,18.22317495,198.5,198.46,0.063]
[1738928805150,18.22317495,198.48,198.46,0.063]
[1738928807851,18.22317495,198.47,198.46,0.063]
[1738928809445,23.26167495,198.47,198.46,0.063]
[1738928815950,37.17353423,198.47,198.46,0.0001]
[1738928816867,39.74783423,198.47,198.46,0.0001]
[1738928817071,40.74783423,198.47,198.46,0.0001]
[1738928817452,20.0,198.43,198.4,0.063]
[1738928817655,18.22317495,198.41,198.4,0.063]
[1738928818360,23.26317495,198.41,198.4,0.063]
[1738928822470,36.67502348,198.41,198.4,0.063]
[1738928822670,56.39820918,198.41,198.4,0.0001]
[1738928822851,55.39820918,198.41,198.4,0.0001]
[1738928823049,23.26317495,198.41,198.4,0.0001]
[1738928824789,36.67502348,198.41,198.4,0.0001]
[1738928824990,37.17503423,198.41,198.4,0.0001]
[1738928825280,55.39820918,198.41,198.4,0.0001]
[1738928825781,56.39820918,198.41,198.4,0.0001]
[1738928826164,57.39820918,198.41,198.4,0.0001]
[1738928826362,20.0,198.37,198.34,0.063]
[1738928826566,18.22317495,198.35,198.34,0.063]
[1738928827572,23.26467495,198.35,198.34,0.063]
[1738928827760,37.17653423,198.35,198.34,0.063]
[1738928830488,20.0,198.32,198.31,0.03]
[1738928830779,38.22317495,198.32,198.31,0.03]
[1738928831175,18.22317495,198.32,198.31,0.03]
[1738928832386,5.0423,198.32,198.31,0.03]
[1738928833671,43.26547495,198.32,198.31,0.03]
[1738928839193,36.67732348,198.32,198.31,0.03]
[1738928839491,38.17733423,198.32,198.31,0.03]
[1738928839702,20.0,198.28,198.26,0.03]
[1738928839991,20.0,198.29,198.26,0.03]
[1738928839992,18.22317495,198.27,198.26,0.03]
[1738928840177,31.63502348,198.27,198.26,0.03]
[1738928840374,32.13503423,198.27,198.26,0.03]
[1738928841175,37.17863423,198.27,198.26,0.03]
[1738928843887,38.17863423,198.27,198.26,0.03]
[1738928844488,20.0,198.23,198.2,0.03]
[1738928844691,18.22317495,198.21,198.2,0.03]
[1738928845885,18.22317495,198.22,198.2,0.03]
[1738928846199,18.22317495,198.23,198.2,0.03]
[1738928846503,23.26787495,198.23,198.2,0.03]
[1738928848006,18.22317495,198.22,198.2,0.03]
[1738928848602,23.26807495,198.22,198.2,0.03]
[1738928848790,18.22317495,198.21,198.2,0.03]
[1738928850699,23.26827495,198.21,198.2,0.03]
[1738928857795,18.22317495,198.21,198.2,0.03]
[1738928858001,18.22317495,198.22,198.2,0.03]
[1738928858204,38.22317495,198.21,198.2,0.03]
[1738928859120,20.0,198.21,198.2,0.03]
[1738928859314,18.22317495,198.24,198.2,0.03]
[1738928859701,18.22317495,198.25,198.2,0.03]
[1738928861122,20.0,198.23,198.2,0.03]
[1738928861707,18.22317495,198.24,198.2,0.03]
[1738928862416,28.11125928,198.28,198.2,0.03]
[1738928862417,18.22317495,198.26,198.2,18.25317495]
[1738928862627,42.10256101,198.3,198.23,18.22317495]
[1738928862826,20.0,198.27,198.23,18.22317495]
[1738928863022,37.05956101,198.3,198.24,18.22317495]
[1738928863921,37.05956101,198.3,198.24,5.0443]
[1738928864236,18.22317495,198.29,198.24,5.0443]
[1738928865003,23.87928606,198.3,198.21,103.6]
[1738928865004,38.22317495,198.27,198.21,103.6]
[1738928865205,18.22317495,198.26,198.21,103.6]
[1738928865405,18.22317495,198.25,198.2,1.6034]
[1738928865719,18.22317495,198.24,198.2,1.6034]
[1738928865903,23.26737495,198.25,198.2,1.6034]
[1738928866103,18.22317495,198.25,198.2,6.6487]
[1738928866328,18.22317495,198.25,198.2,1.6034]
[1738928869243,23.26707495,198.26,198.2,1.6034]
[1738928869435,18.22317495,198.25,198.2,1.6034]
[1738928870217,23.26727495,198.25,198.2,1.6034]
[1738928872439,18.22317495,198.25,198.2,1.6034]
[1738928872641,18.22317495,198.26,198.2,24.87187495]
[1738928873146,18.22317495,198.24,198.2,1.6034]
[1738928873537,18.22317495,198.23,198.2,1.6034]
[1738928874530,23.26777495,198.24,198.2,1.6034]
[1738928875035,5.0446,198.24,198.2,1.6034]
[1738928876243,18.22317495,198.26,198.2,1.6034]
[1738928876420,5.0441,198.25,198.2,1.6034]
[1738928880524,16.77642792,198.25,198.2,1.6034]
[1738928880735,11.73232792,198.24,198.2,1.6034]
[1738928881340,11.73232792,198.24,198.2,0.03]
[1738928881537,5.0446,198.23,198.2,0.03]
[1738928883268,11.73232792,198.22,198.2,0.03]
[1738928883544,11.73232792,198.21,198.2,0.03]
[1738928884345,11.73232792,198.23,198.2,0.03]
[1738928885330,5.0448,198.22,198.2,0.03]
[1738928886137,20.0,198.21,198.2,0.03]
[1738928886336,25.0451,198.21,198.2,0.03]
[1738928886658,20.0,198.21,198.2,0.03]
[1738928886951,20.0,198.22,198.2,11.76232792]
[1738928888244,5.0441,198.25,198.2,11.76232792]
[1738928889962,16.77642792,198.25,198.2,0.03]
[1738928890152,11.73232792,198.24,198.2,0.03]
[1738928890457,16.77692792,198.23,198.2,0.03]
[1738928890659,5.0446,198.23,198.2,0.03]
[1738928892254,5.0442,198.25,198.21,11.73232792]
[1738928892560,5.0442,198.25,198.2,0.03]
[1738928892760,11.73232792,198.23,198.2,0.03]
[1738928893367,11.73232792,198.24,198.2,0.03]
[1738928895059,11.73232792,198.22,198.2,0.03]
[1738928896455,16.77692792,198.23,198.2,0.03]
[1738928897761,5.0446,198.23,198.2,0.03]
[1738928900850,0.03,198.26,198.2,0.03]
[1738928901066,0.03,198.26,198.24,11.73232792]
[1738928903576,0.03,198.26,198.23,11.73232792]
[1738928907149,0.03,198.26,198.22,11.73232792]
[1738928908356,0.03,198.26,198.24,11.73232792]
[1738928910383,0.03,198.26,198.23,11.73232792]
[1738928910588,11.76232792,198.26,198.21,6.3557]
[1738928910790,0.03,198.26,198.21,6.3557]
[1738928911162,5.0738,198.26,198.21,6.3557]
[1738928912790,5.0738,198.26,198.21,18.08802792]
[1738928913386,0.03,198.26,198.21,18.08802792]
[1738928913559,0.03,198.26,198.22,11.73232792]
[1738928914779,0.03,198.26,198.21,18.08802792]
[1738928915873,11.76232792,198.26,198.2,0.03]
[1738928916063,0.03,198.26,198.2,11.76232792]
[1738928916588,0.03,198.26,198.21,11.73232792]
[1738928917286,0.03,198.26,198.2,11.76232792]
[1738928917488,11.76232792,198.26,198.2,11.76232792]
[1738928918284,5.0441,198.25,198.2,11.76232792]
[1738928919485,5.0441,198.25,198.2,0.03]
[1738928919680,11.73232792,198.24,198.2,0.03]
[1738928921088,5.0441,198.25,198.2,0.03]
[1738928921089,11.73232792,198.23,198.2,0.03]
[1738928921589,5.0448,198.22,198.2,0.03]
[1738928922186,16.77712792,198.22,198.2,0.03]
[1738928922885,11.73232792,198.21,198.2,0.03]
[1738928923780,16.77742792,198.21,198.2,0.03]
[1738928924484,5.0451,198.21,198.2,0.03]
[1738928926687,20.0,198.21,198.2,0.03]
[1738928926886,31.73232792,198.21,198.2,0.03]
[1738928927293,16.77692792,198.23,198.2,0.03]
[1738928927601,20.0,198.21,198.2,0.03]
[1738928928317,31.73232792,198.21,198.2,0.03]
[1738928928783,36.77742792,198.21,198.2,0.03]
[1738928930286,50.18927645,198.21,198.2,0.03]
[1738928933675,36.77742792,198.21,198.2,0.03]
[1738928934375,50.6892872,198.21,198.2,0.03]
[1738928934777,36.77742792,198.21,198.2,0.03]
[1738928935181,50.18927645,198.21,198.2,0.03]
[1738928935973,36.77742792,198.21,198.2,0.03]
[1738928937308,11.73232792,198.22,198.2,0.03]
[1738928937605,16.77712792,198.23,198.2,0.03]
[1738928937905,11.73232792,198.22,198.2,0.03]
[1738928938592,5.0451,198.21,198.2,0.03]
[1738928940909,20.0,198.21,198.2,0.03]
[1738928947400,16.77672792,198.24,198.2,0.03]
[1738928947577,36.77672792,198.24,198.2,0.03]
[1738928948803,25.0444,198.24,198.2,0.03]
[1738928949008,20.0,198.24,198.21,11.73232792]
[1738928949204,20.0,198.24,198.2,0.03]
[1738928949205,20.0,198.24,198.2,11.76232792]
[1738928949405,20.0,198.24,198.2,0.03]
[1738928950109,20.0,198.24,198.2,11.76232792]
[1738928953610,5.0738,198.26,198.2,11.76232792]
[1738928953790,0.03,198.26,198.22,11.73232792]
[1738928953988,0.03,198.26,198.21,11.73232792]
[1738928954190,11.76232792,198.26,198.2,0.03]
[1738928954514,11.73232792,198.25,198.2,0.03]
[1738928956514,5.0443,198.24,198.2,0.03]
[1738928963216,16.77642792,198.25,198.2,0.03]
[1738928964816,5.0441,198.25,198.2,0.03]
[1738928967007,16.77642792,198.25,198.2,0.03]
[1738928967810,16.80612792,198.26,198.2,0.03]
[1738928975324,11.73232792,198.25,198.2,0.03]
[1738928976229,16.80612792,198.26,198.2,0.03]
[1738928981619,5.0738,198.26,198.2,11.76232792]
[1738928982733,16.80612792,198.26,198.2,0.03]
[1738928983233,5.0738,198.26,198.2,11.76232792]
[1738928986931,16.80612792,198.26,198.2,0.03]
[1738928989538,5.0738,198.26,198.2,11.76232792]
[1738928991216,5.0738,198.26,198.2,16.80762792]
[1738928994642,16.80612792,198.26,198.2,16.80762792]
[1738928995243,16.80612792,198.26,198.2,11.76232792]
[1738928998046,5.0738,198.26,198.2,11.76232792]
[1738928998729,16.80612792,198.26,198.2,11.76232792]
[1738928999946,5.0738,198.26,198.2,11.76232792]
[1738929001045,5.0738,198.26,198.2,93.36232792]
[1738929002127,0.03,198.26,198.22,11.73232792]
[1738929002551,0.03,198.26,198.21,18.38512792]
[1738929006228,11.76232792,198.26,198.21,6.6528]
[1738929006429,11.76232792,198.26,198.2,81.63]
[1738929007456,5.0441,198.25,198.2,81.63]
[1738929007658,5.0441,198.25,198.21,0.063]
[1738929008574,31.73232792,198.22,198.21,0.063]
[1738929009661,36.77712792,198.22,198.21,0.063]
[1738929012162,25.0448,198.22,198.21,0.063]
[1738929012361,0.03,198.26,198.21,11.79532792]
[1738929012557,0.03,198.26,198.22,11.73232792]
[1738929012558,5.0739,198.26,198.22,11.73232792]
[1738929012961,0.03,198.26,198.23,11.73232792]
[1738929018164,0.03,198.26,198.22,11.73232792]
[1738929018967,0.03,198.26,198.22,93.33232792]
[1738929019448,0.03,198.26,198.23,11.73232792]
[1738929020064,0.03,198.26,198.22,93.33232792]
[1738929020564,0.03,198.26,198.22,93.39532792]
[1738929028350,0.03,198.26,198.22,81.663]
[1738929029156,11.76232792,198.26,198.22,81.663]
[1738929029752,0.03,198.26,198.22,81.663]
[1738929030150,5.0738,198.26,198.22,81.663]
[1738929030762,5.0738,198.26,198.22,0.063]
[1738929032083,11.76232792,198.26,198.22,0.063]
[1738929032286,0.03,198.26,198.22,0.063]
[1738929032657,31.73232792,198.23,198.22,0.063]
[1738929034391,50.18877645,198.23,198.21,0.063]
[1738929034693,25.6441872,198.22,198.2,0.03]
[1738929034888,11.73232792,198.21,198.2,0.03]
[1738929035761,30.18927645,198.21,198.2,0.03]
[1738929035953,13.41184853,198.2,198.19,0.03]
[1738929036151,25.14417645,198.2,198.19,0.03]
[1738929037455,30.18957645,198.2,198.19,0.03]
[1738929039975,30.18957645,198.2,198.19,0.0001]
[1738929040361,80.77888813,198.2,198.18,0.0001]
[1738929040557,25.6441872,198.19,198.18,0.0001]
[1738929041774,30.6897872,198.19,198.18,0.0001]
[1738929055202,30.7197872,198.19,198.18,0.0001]
[1738929055406,5.0756,198.19,198.18,0.0001]
[1738929055689,0.03,198.19,198.18,0.0001]
[1738929057105,20.03,198.19,198.18,0.0001]
[1738929057689,0.03,198.19,198.18,0.0001]
[1738929059108,0.03,198.19,198.18,11.73242792]
[1738929060175,0.03,198.19,198.18,0.0001]
[1738929061612,0.03,198.19,198.18,11.73242792]
[1738929063004,0.03,198.19,198.18,16.77832792]
[1738929063292,0.03,198.19,198.18,208.02822792]
[1738929065095,0.03,198.19,198.18,269.36938813]
[1738929065477,0.03,198.26,198.19,16.03254853]
[1738929065682,0.03,198.26,198.25,11.73232792]
[1738929066313,0.03,198.26,198.25,196.93232792]
[1738929066597,0.03,198.26,198.25,203.48802792]
[1738929068189,0.03,198.26,198.22,11.73232792]
[1738929068910,0.03,198.26,198.2,18.28802792]
[1738929069077,11.73232792,198.25,198.2,6.5557]
[1738929069285,5.0443,198.24,198.19,1.6207]
[1738929069598,5.0443,198.24,198.19,13.35302792]
[1738929069784,0.03,198.26,198.21,11.73232792]
[1738929069983,0.03,198.26,198.22,11.73232792]
[1738929070594,0.03,198.26,198.2,11.73232792]
[1738929070797,5.0739,198.26,198.2,11.73232792]
[1738929071105,16.80622792,198.26,198.19,13.35302792]
[1738929071892,16.80622792,198.26,198.18,5.0459]
[1738929071893,11.73232792,198.24,198.18,0.0001]
[1738929073211,5.0446,198.23,198.18,0.0001]
[1738929074492,5.0446,198.23,198.18,11.73242792]
[1738929074692,5.0446,198.23,198.19,11.73232792]
[1738929075304,11.76232792,198.26,198.2,11.73232792]
[1738929075489,0.03,198.26,198.23,11.73232792]
[1738929076194,0.03,198.26,198.22,11.73232792]
[1738929077403,0.03,198.26,198.23,11.73232792]
[1738929077591,0.03,198.26,198.25,11.73232792]
[1738929080416,0.03,198.26,198.25,16.77642792]
[1738929080926,0.03,198.26,198.25,201.97642792]
[1738929082922,0.03,198.26,198.25,196.93232792]
[1738929084423,0.03,198.26,198.25,11.73232792]
[1738929085908,0.03,198.26,198.23,11.73232792]
[1738929089328,0.03,198.26,198.22,185.2]
[1738929089329,11.76232792,198.26,198.2,11.73232792]
[1738929089508,11.76232792,198.26,198.2,93.33232792]
[1738929090531,5.0441,198.25,198.2,93.33232792]
[1738929092315,16.77642792,198.25,198.2,81.6]
[1738929093229,16.77642792,198.25,198.19,11.79532792]
[1738929097220,11.73232792,198.24,198.19,0.063]
[1738929098929,5.0446,198.23,198.19,0.063]
[1738929100220,5.0446,198.23,198.19,11.79532792]
[1738929101117,16.77692792,198.23,198.19,0.063]
[1738929102517,5.0446,198.23,198.19,0.063]
[1738929102934,4.5446,198.23,198.19,0.063]
[1738929106337,4.5446,198.23,198.19,11.79532792]
[1738929106539,20.0,198.22,198.2,11.73232792]
[1738929108846,20.0,198.22,198.19,11.79532792]
[1738929110343,25.0447,198.23,198.19,11.79532792]
[1738929111545,0.03,198.26,198.22,11.73232792]
[1738929111728,0.03,198.26,198.25,11.73232792]
[1738929111933,0.03,198.26,198.25,15.45232792]
[1738929112134,0.03,198.26,198.25,200.65232792]
[1738929113839,0.03,198.26,198.25,205.69642792]
[1738929114535,0.03,198.26,198.25,200.65232792]
[1738929115034,0.03,198.26,198.25,15.45232792]
[1738929116236,11.06467582,198.32,198.25,11.73232792]
[1738929116550,11.73232792,198.31,198.25,11.73232792]
[1738929116727,11.73232792,198.32,198.25,11.73232792]
[1738929117328,16.77462792,198.32,198.26,11.73232792]
[1738929117642,31.73232792,198.29,198.23,11.73232792]
[1738929117839,11.73232792,198.28,198.22,11.73232792]
[1738929119425,5.0433,198.28,198.22,11.73232792]
[1738929119928,5.0433,198.28,198.23,11.73232792]
[1738929120135,5.0433,198.28,198.24,11.73232792]
[1738929120536,5.0433,198.28,198.22,11.73232792]
[1738929120858,11.73232792,198.27,198.21,11.73232792]
[1738929121230,16.77562792,198.28,198.22,11.73232792]
[1738929121434,5.0433,198.28,198.23,11.73232792]
[1738929121856,5.0433,198.28,198.22,11.73232792]
[1738929122661,5.0433,198.28,198.24,11.73232792]
[1738929122947,20.0,198.27,198.24,11.73232792]
[1738929125162,20.0,198.27,198.23,11.73232792]
[1738929126950,13.33062792,198.3,198.23,11.73232792]
[1738929127256,5.0431,198.29,198.26,11.73232792]
[1738929127646,5.0431,198.29,198.25,11.73232792]
[1738929128355,0.03,198.32,198.28,11.73232792]
[1738929128552,0.03,198.32,198.31,11.73232792]
[1738929129574,0.03,198.32,198.31,94.08850734]
[1738929130435,0.03,198.32,198.31,99.13110734]
[1738929130639,0.03,198.32,198.31,93.33232792]
[1738929130847,0.03,198.32,198.31,94.08855357]
[1738929132066,0.03,198.32,198.31,93.33232792]
[1738929135357,0.03,198.32,198.31,11.73232792]
[1738929135568,0.03,198.32,198.29,11.73232792]
[1738929136872,0.03,198.32,198.28,11.73232792]
[1738929137861,0.03,198.32,198.26,11.73232792]
[1738929138071,11.73232792,198.31,198.24,11.73232792]
[1738929138443,11.73232792,198.3,198.24,11.73232792]
[1738929138643,16.77522792,198.3,198.24,11.73232792]
[1738929138872,5.0429,198.3,198.24,11.73232792]
[1738929139073,16.77522792,198.3,198.24,11.73232792]
[1738929139570,5.0429,198.3,198.24,11.73232792]
[1738929139957,5.0429,198.3,198.25,11.73232792]
[1738929140745,16.77522792,198.3,198.24,11.73232792]
[1738929141078,5.0429,198.3,198.24,11.73232792]
[1738929141672,16.77522792,198.3,198.24,11.73232792]
[1738929142867,5.0429,198.3,198.25,11.73232792]
[1738929143361,16.77522792,198.3,198.24,11.73232792]
[1738929145068,5.0429,198.3,198.25,11.73232792]
[1738929146866,5.0429,198.3,198.24,11.73232792]
[1738929147070,16.77522792,198.3,198.23,11.73232792]
[1738929147570,5.0429,198.3,198.25,11.73232792]
[1738929148875,5.0426,198.31,198.27,11.73232792]
[1738929149059,5.0723,198.32,198.27,11.73232792]
[1738929149454,16.80462792,198.32,198.26,11.73232792]
[1738929149654,16.80462792,198.32,198.25,11.73232792]
[1738929149855,5.0723,198.32,198.27,11.73232792]
[1738929150551,5.0723,198.32,198.26,11.79532792]
[1738929151480,16.80462792,198.32,198.26,0.063]
[1738929152273,5.0723,198.32,198.26,11.79532792]
[1738929152453,16.80462792,198.32,198.26,0.063]
[1738929153182,5.0723,198.32,198.27,11.73232792]
[1738929153861,16.80462792,198.32,198.26,0.063]
[1738929154175,11.73232792,198.31,198.26,0.063]